bitfinex/quotes_BTCUSD_20250330
["timestamp","ask_amount","ask_price","bid_price","bid_amount"]
[1743364600787,6.34390271,82793.0,82792.0,45.20583965]
[1743364602084,6.05771654,82793.0,82792.0,45.20583965]
[1743364602388,6.63339654,82793.0,82792.0,45.20583965]
[1743364602588,6.64547454,82793.0,82792.0,45.20583965]
[1743364604232,6.66001539,82793.0,82792.0,45.20583965]
[1743364605657,6.66018389,82793.0,82792.0,45.20583965]
[1743364605809,6.78405953,82793.0,82792.0,45.20583965]
[1743364606006,6.62687868,82793.0,82792.0,45.20583965]
[1743364606234,6.41812268,82793.0,82792.0,45.20583965]
[1743364606452,6.43266353,82793.0,82792.0,45.20583965]
[1743364608150,6.45159807,82793.0,82792.0,45.20583965]
[1743364611676,6.03349807,82793.0,82792.0,45.20583965]
[1743364613370,6.01456353,82793.0,82792.0,45.20583965]
[1743364614474,5.74401795,82793.0,82792.0,45.20583965]
[1743364615729,1.96822295,82793.0,82792.0,45.20583965]
[1743364615923,6.96822295,82793.0,82792.0,45.20583965]
[1743364618904,7.01162531,82793.0,82792.0,45.20583965]
[1743364619755,6.98715759,82793.0,82792.0,45.20583965]
[1743364619997,6.98715759,82793.0,82792.0,45.20143237]
[1743364620393,6.76098797,82793.0,82792.0,45.20143237]
[1743364620791,6.74205333,82793.0,82792.0,45.20143237]
[1743364622290,7.04205333,82793.0,82792.0,45.20143237]
[1743364626658,2.04205333,82793.0,82792.0,45.20143237]
[1743364626878,7.04205333,82793.0,82792.0,45.20143237]
[1743364627032,7.37751861,82793.0,82792.0,45.20143237]
[1743364628116,7.04205333,82793.0,82792.0,45.20143237]
[1743364629359,7.0609879,82793.0,82792.0,45.20143237]
[1743364630422,6.09286826,82793.0,82792.0,45.20143237]
[1743364630619,5.93633369,82793.0,82792.0,45.20143237]
[1743364630819,6.07389369,82793.0,82792.0,45.20143237]
[1743364631540,6.15679369,82793.0,82792.0,45.20143237]
[1743364634758,6.17572875,82793.0,82792.0,45.20143237]
[1743364635161,6.15679369,82793.0,82792.0,45.20143237]
[1743364636359,5.93633369,82793.0,82792.0,45.20143237]
[1743364636532,3.14601748,82793.0,82792.0,45.24973237]
[1743364636730,2.85809548,82793.0,82792.0,45.24973237]
[1743364636872,2.87263633,82793.0,82792.0,45.24973237]
[1743364637074,3.17263633,82793.0,82792.0,45.24973237]
[1743364637274,2.04201333,82793.0,82792.0,45.24973237]
[1743364637529,6.47275233,82793.0,82792.0,45.24973237]
[1743364641228,4.05383133,82793.0,82792.0,45.24973237]
[1743364641477,4.02465133,82793.0,82792.0,45.24973237]
[1743364641679,3.60718833,82793.0,82792.0,45.24973237]
[1743364643499,3.46962833,82793.0,82792.0,45.24973237]
[1743364646065,3.71119433,82793.0,82792.0,45.24973237]
[1743364646267,3.72327233,82793.0,82792.0,45.20143237]
[1743364647916,2.14601933,82793.0,82792.0,45.20143237]
[1743364648123,7.14601933,82793.0,82792.0,45.20143237]
[1743364648537,7.03331933,82793.0,82792.0,45.20143237]
[1743364649233,6.95661733,82793.0,82792.0,45.20143237]
[1743364650760,6.71505133,82793.0,82792.0,45.20143237]
[1743364650971,5.28453833,82793.0,82792.0,45.20143237]
[1743364651346,5.42205833,82793.0,82792.0,45.20143237]
[1743364658821,2.04197333,82793.0,82792.0,45.20143237]
[1743364659043,6.65343233,82793.0,82792.0,45.20143237]
[1743364659337,6.63538233,82793.0,82792.0,45.20143237]
[1743364660349,6.47891433,82793.0,82792.0,45.20143237]
[1743364661068,6.26665933,82793.0,82792.0,45.20143237]
[1743364664460,6.52030333,82793.0,82792.0,45.20143237]
[1743364664809,6.43774133,82793.0,82792.0,45.20143237]
[1743364669114,6.30022133,82793.0,82792.0,45.20143237]
[1743364669296,2.28349933,82793.0,82792.0,45.20143237]
[1743364669496,5.46146733,82793.0,82792.0,45.20143237]
[1743364669689,5.44693533,82793.0,82792.0,45.20143237]
[1743364669888,4.19985733,82793.0,82792.0,45.20143237]
[1743364670451,4.44142333,82793.0,82792.0,45.20143237]
[1743364670955,4.45350133,82793.0,82792.0,45.20143237]
[1743364675929,4.19985733,82793.0,82792.0,45.20143237]
[1743364676111,3.80834233,82793.0,82792.0,45.20143237]
[1743364676314,3.18090033,82793.0,82792.0,45.20143237]
[1743364676534,3.06348833,82793.0,82792.0,45.20143237]
[1743364677468,3.06648833,82793.0,82792.0,45.20143237]
[1743364677641,3.06948833,82793.0,82792.0,45.20143237]
[1743364679375,3.32313233,82793.0,82792.0,45.20143237]
[1743364679747,3.18569233,82793.0,82792.0,45.20143237]
[1743364680256,2.15201933,82793.0,82792.0,45.20143237]
[1743364680457,6.13376133,82793.0,82792.0,45.20143237]
[1743364680612,7.23461933,82793.0,82792.0,45.20143237]
[1743364680818,7.11369233,82793.0,82792.0,45.20143237]
[1743364684871,7.13262713,82793.0,82792.0,45.20143237]
[1743364685088,7.11369233,82793.0,82792.0,45.20143237]
[1743364689805,7.23461933,82793.0,82792.0,45.20143237]
[1743364691799,6.82367533,82793.0,82792.0,45.20143237]
[1743364696981,2.23461933,82793.0,82792.0,45.20143237]
[1743364697280,7.23461933,82793.0,82792.0,45.20143237]
[1743364699625,7.25355416,82793.0,82792.0,45.20143237]
[1743364700855,7.23461933,82793.0,82792.0,45.20143237]
[1743364701460,7.08817833,82793.0,82792.0,45.20143237]
[1743364701906,6.99495133,82793.0,82792.0,45.20143237]
[1743364702606,6.99495133,82793.0,82792.0,45.20065432]
[1743364706543,6.47242133,82793.0,82792.0,45.20065432]
[1743364706724,6.60982133,82793.0,82792.0,45.20065432]
[1743364707744,2.37201933,82793.0,82792.0,45.20065432]
[1743364707943,6.77773033,82793.0,82792.0,45.20065432]
[1743364708107,6.53999633,82793.0,82792.0,45.20065432]
[1743364713339,6.54499633,82793.0,82792.0,44.15641625]
[1743364713546,6.72836449,82793.0,82792.0,44.15641625]
[1743364714160,6.72836449,82793.0,82792.0,44.1301565]
[1743364714508,7.42236449,82793.0,82792.0,44.1301565]
[1743364714877,7.43236449,82793.0,82792.0,44.1311565]
[1743364715163,7.45695435,82793.0,82792.0,44.1311565]
[1743364715388,7.49328127,82793.0,82792.0,44.1311565]
[1743364716325,7.49328127,82793.0,82792.0,43.08691843]
[1743364717286,7.45695435,82793.0,82792.0,43.08691843]
[1743364717644,7.51828127,82793.0,82792.0,42.53328443]
[1743364718254,3.35030427,82793.0,82792.0,42.53328443]
[1743364718462,8.35030427,82793.0,82792.0,42.53328443]
[1743364720615,8.36030427,82793.0,82792.0,42.53328443]
[1743364720811,8.15422297,82793.0,82792.0,42.53328443]
[1743364722624,8.11789605,82793.0,82792.0,42.53328443]
[1743364723390,8.15424505,82793.0,82792.0,42.53328443]
[1743364725586,8.17318169,82793.0,82792.0,42.53328443]
[1743364725793,8.15424505,82793.0,82792.0,42.53328443]
[1743364726795,8.15424505,82793.0,82792.0,41.98275643]
[1743364729218,3.15424505,82793.0,82792.0,41.98275643]
[1743364729454,8.15424505,82793.0,82792.0,41.98275643]
[1743364732195,7.97697689,82793.0,82792.0,41.98275643]
[1743364732422,6.10313889,82793.0,82792.0,41.98275643]
[1743364732618,5.96577889,82793.0,82792.0,41.98275643]
[1743364732830,6.10313889,82793.0,82792.0,41.98275643]
[1743364735422,6.12207561,82793.0,82792.0,41.98275643]
[1743364735619,6.10313889,82793.0,82792.0,41.98275643]
[1743364736675,6.10313889,82793.0,82792.0,41.97748787]
[1743364738518,5.83779989,82793.0,82792.0,41.97748787]
[1743364739510,5.84408531,82793.0,82792.0,41.97748787]
[1743364739818,5.86302166,82793.0,82792.0,41.97748787]
[1743364740386,5.93963624,82793.0,82792.0,41.96192654]
[1743364740771,5.92069989,82793.0,82792.0,41.96192654]
[1743364741010,5.92198263,82793.0,82792.0,41.96192654]
[1743364741325,5.91069989,82793.0,82792.0,41.96092654]
[1743364741486,5.91569989,82793.0,82792.0,41.96092654]
[1743364742468,5.92069989,82793.0,82792.0,41.96092654]
[1743364744068,5.73777577,82793.0,82792.0,41.96092654]
[1743364744215,5.73150232,82793.0,82792.0,41.96092654]
[1743364745244,5.750439,82793.0,82792.0,41.96092654]
[1743364745438,5.73150232,82793.0,82792.0,41.96092654]
[1743364747024,5.73777651,82793.0,82792.0,41.96092654]
[1743364747383,5.73150232,82793.0,82792.0,41.96092654]
[1743364749707,2.88553722,82793.0,82792.0,41.96092654]
[1743364749918,7.92040538,82793.0,82792.0,41.96092654]
[1743364750147,2.92667932,82793.0,82792.0,41.96092654]
[1743364750342,7.92040538,82793.0,82792.0,41.96092654]
[1743364750935,7.90146848,82793.0,82792.0,41.96092654]
[1743364753046,7.87287663,82793.0,82792.0,41.96092654]
[1743364753246,7.86660032,82793.0,82792.0,41.96092654]
[1743364753455,7.76410848,82793.0,82792.0,41.96092654]
[1743364753611,7.90142848,82793.0,82792.0,41.96092654]
[1743364755072,7.9353711,82793.0,82792.0,41.96092654]
[1743364755278,7.95430797,82793.0,82792.0,41.96092654]
[1743364755474,7.9353711,82793.0,82792.0,41.96092654]
[1743364755884,7.9625252,82793.0,82792.0,41.96092654]
[1743364757767,7.9625252,82793.0,82792.0,41.94753327]
[1743364758797,7.92858258,82793.0,82792.0,41.94753327]
[1743364759205,7.90142848,82793.0,82792.0,41.94753327]
[1743364762989,7.90142848,82793.0,82792.0,41.87230129]
[1743364765164,7.9077021,82793.0,82792.0,41.87230129]
[1743364765363,7.90142848,82793.0,82792.0,41.87230129]
[1743364766065,7.76410848,82793.0,82792.0,41.87230129]
[1743364766269,7.90138848,82793.0,82792.0,41.87230129]
[1743364768055,7.90765748,82793.0,82792.0,41.87230129]
[1743364768400,7.90138848,82793.0,82792.0,41.87230129]
[1743364770138,7.92032537,82793.0,82792.0,41.87230129]
[1743364771071,7.92660078,82793.0,82792.0,41.87230129]
[1743364771246,7.90766389,82793.0,82792.0,41.87230129]
[1743364771428,7.90138848,82793.0,82792.0,41.87230129]
[1743364773088,7.87920448,82793.0,82792.0,41.87230129]
[1743364773293,7.84433632,82793.0,82792.0,41.87230129]
[1743364773510,7.94971174,82793.0,82792.0,41.87230129]
[1743364773717,7.91225016,82793.0,82792.0,41.87230129]
[1743364774048,7.91851427,82793.0,82792.0,41.87230129]
[1743364774453,7.93941569,82793.0,82792.0,41.87230129]
[1743364774672,7.89047237,82793.0,82792.0,41.87230129]
[1743364774873,5.68094976,82793.0,82792.0,41.87230129]
[1743364775568,5.6998864,82793.0,82792.0,41.87230129]
[1743364775976,5.68094976,82793.0,82792.0,41.87230129]
[1743364778909,5.69988611,82793.0,82792.0,41.87230129]
[1743364780125,5.68094976,82793.0,82792.0,41.87230129]
[1743364783452,5.69988618,82793.0,82792.0,41.87230129]
[1743364783667,5.68094976,82793.0,82792.0,41.87230129]
[1743364784200,5.54366976,82793.0,82792.0,41.87230129]
[1743364784402,5.68090976,82793.0,82792.0,41.87230129]
[1743364785294,2.91888776,82793.0,82792.0,41.87230129]
[1743364785433,7.91888776,82793.0,82792.0,41.87230129]
[1743364786046,7.85097392,82793.0,82792.0,41.87230129]
[1743364787149,7.91888776,82793.0,82792.0,41.87230129]
[1743364790004,7.93782413,82793.0,82792.0,41.87230129]
[1743364790553,7.93728413,82793.0,82792.0,41.87230129]
[1743364791087,7.91834776,82793.0,82792.0,41.87230129]
[1743364794310,7.95321592,82793.0,82792.0,41.87230129]
[1743364794949,7.99313736,82793.0,82792.0,41.87230129]
[1743364795456,8.11744943,82793.0,82792.0,41.87230129]
[1743364795809,7.99313736,82793.0,82792.0,41.87230129]
[1743364796258,7.95321592,82793.0,82792.0,41.87230129]
[1743364797856,7.91834776,82793.0,82792.0,41.87230129]
[1743364798970,7.93728441,82793.0,82792.0,41.87230129]
[1743364800116,7.91834776,82793.0,82792.0,41.87230129]
[1743364800497,3.02372318,82793.0,82792.0,41.87230129]
[1743364800697,7.91834776,82793.0,82792.0,41.87230129]
[1743364802251,7.91207637,82793.0,82792.0,41.87230129]
[1743364802611,6.74115537,82793.0,82792.0,41.87230129]
[1743364802815,6.55144337,82793.0,82792.0,41.87230129]
[1743364803447,6.5870612,82793.0,82792.0,40.84383229]
[1743364803876,6.5870612,82793.0,82792.0,40.29316929]
[1743364804076,6.5870612,82793.0,82792.0,40.25665181]
[1743364804320,6.55989567,82793.0,82792.0,40.25665181]
[1743364804518,6.52593899,82793.0,82792.0,40.25665181]
[1743364804737,6.45802515,82793.0,82792.0,40.25665181]
[1743364805564,6.45798515,82793.0,82792.0,40.25665181]
[1743364809610,6.42236732,82793.0,82792.0,40.25665181]
[1743364809832,6.45868489,82793.0,82792.0,40.25665181]
[1743364810033,6.49860633,82793.0,82792.0,40.25665181]
[1743364810428,6.60398175,82793.0,82792.0,40.25665181]
[1743364810591,6.49860633,82793.0,82792.0,40.25665181]
[1743364811258,2.85923933,82793.0,82792.0,40.25665181]
[1743364811446,7.85923933,82793.0,82792.0,40.25665181]
[1743364811586,7.81931789,82793.0,82792.0,40.25665181]
[1743364814162,7.89721789,82793.0,82792.0,40.25665181]
[1743364814979,7.81931789,82793.0,82792.0,40.25665181]
[1743364815324,7.68211789,82793.0,82792.0,40.25665181]
[1743364815539,7.81931789,82793.0,82792.0,40.25665181]
[1743364815758,7.81431789,82793.0,82792.0,40.25665181]
[1743364815953,7.81931789,82793.0,82792.0,40.25665181]
[1743364816334,7.81431789,82793.0,82792.0,40.25665181]
[1743364816505,7.81931789,82793.0,82792.0,40.25665181]
[1743364818774,7.78300032,82793.0,82792.0,40.25665181]
[1743364819179,7.79431789,82793.0,82792.0,40.25665181]
[1743364819394,7.81931789,82793.0,82792.0,40.25665181]
[1743364820568,7.78300032,82793.0,82792.0,40.25665181]
[1743364820770,7.81931789,82793.0,82792.0,40.25665181]
[1743364821780,2.81931789,82793.0,82792.0,40.25665181]
[1743364821980,7.81931789,82793.0,82792.0,40.25665181]
[1743364822188,7.82560066,82793.0,82792.0,40.25665181]
[1743364822515,7.81931789,82793.0,82792.0,40.25665181]
[1743364823738,7.68211789,82793.0,82792.0,40.25665181]
[1743364823959,7.81927789,82793.0,82792.0,40.25665181]
[1743364825174,7.78296032,82793.0,82792.0,40.25665181]
[1743364827593,7.81927789,82793.0,82792.0,40.25665181]
[1743364829315,7.78296032,82793.0,82792.0,40.25665181]
[1743364829471,7.82288176,82793.0,82792.0,40.25665181]
[1743364829826,7.85919933,82793.0,82792.0,39.19879758]
[1743364830076,2.93799933,82793.0,82792.0,37.32707732]
[1743364830279,2.98779933,82793.0,82792.0,36.74188899]
[1743364831221,2.98279933,82793.0,82792.0,36.74188899]
[1743364831620,2.98779933,82793.0,82792.0,36.74188899]
[1743364831886,2.98279933,82793.0,82792.0,36.74188899]
[1743364832405,2.98779933,82793.0,82792.0,36.74188899]
[1743364832705,2.98779933,82793.0,82792.0,35.69765092]
[1743364833697,2.94787789,82793.0,82792.0,35.69765092]
[1743364833891,2.96681545,82793.0,82792.0,35.69765092]
[1743364834091,2.97309565,82793.0,82792.0,35.69765092]
[1743364834290,3.01301709,82793.0,82792.0,35.69765092]
[1743364834473,3.00673689,82793.0,82792.0,35.69765092]
[1743364834871,3.11211231,82793.0,82792.0,35.69765092]
[1743364835089,3.00673689,82793.0,82792.0,35.69765092]
[1743364835812,2.86957689,82793.0,82792.0,35.69765092]
[1743364836009,2.96681545,82793.0,82792.0,35.69765092]
[1743364836391,2.91701545,82793.0,82792.0,35.69765092]
[1743364836587,7.17096489,82793.0,82792.0,35.69765092]
[1743364836994,7.17724696,82793.0,82792.0,35.69765092]
[1743364837598,4.95434289,82793.0,82792.0,35.69765092]
[1743364837793,4.91802532,82793.0,82792.0,35.69765092]
[1743364838673,4.91802532,82793.0,82792.0,35.69131499]
[1743364839417,4.68340362,82793.0,82792.0,35.69131499]
[1743364839624,4.31886277,82793.0,82792.0,35.69131499]
[1743364839825,4.15598277,82793.0,82792.0,35.76921499]
[1743364840044,4.13417462,82793.0,82792.0,35.76921499]
[1743364840249,4.43417462,82793.0,82792.0,35.76921499]
[1743364840422,4.16598977,82793.0,82792.0,35.76921499]
[1743364840635,3.49260862,82793.0,82792.0,35.76921499]
[1743364840996,3.47806777,82793.0,82792.0,35.76921499]
[1743364841193,3.51154501,82793.0,82792.0,35.76921499]
[1743364841784,3.49260862,82793.0,82792.0,35.76921499]
[1743364846582,3.51154506,82793.0,82792.0,35.76921499]
[1743364847825,3.51154506,82793.0,82792.0,35.69131499]
[1743364849828,6.45524006,82793.0,82792.0,35.69131499]
[1743364850552,6.43630362,82793.0,82792.0,35.69131499]
[1743364851301,6.43000532,82793.0,82792.0,35.69131499]
[1743364851821,6.46632289,82793.0,82792.0,35.69131499]
[1743364852045,6.57169831,82793.0,82792.0,35.69131499]
[1743364852378,6.43000532,82793.0,82792.0,35.69131499]
[1743364853764,4.53295032,82793.0,82792.0,35.69131499]
[1743364853959,4.39083032,82793.0,82792.0,35.69131499]
[1743364854164,4.53291032,82793.0,82792.0,35.73891499]
[1743364855199,4.55184678,82793.0,82792.0,35.73891499]
[1743364856343,4.29461438,82793.0,82792.0,35.73891499]
[1743364856790,4.27567792,82793.0,82792.0,35.73891499]
[1743364857369,4.27567792,82793.0,82792.0,35.69131499]
[1743364857574,1.17273292,82793.0,82792.0,35.69131499]
[1743364857752,6.17273292,82793.0,82792.0,35.69131499]
[1743364859866,6.19166902,82793.0,82792.0,35.69131499]
[1743364860663,5.23463702,82793.0,82792.0,35.69131499]
[1743364860899,5.10490802,82793.0,82792.0,35.69131499]
[1743364861046,4.92456702,82793.0,82792.0,35.69131499]
[1743364861453,4.78748702,82793.0,82792.0,35.69131499]
[1743364861662,4.77540902,82793.0,82792.0,35.69131499]
[1743364861819,4.90748902,82793.0,82792.0,35.69131499]
[1743364862526,5.14905502,82793.0,82792.0,35.69131499]
[1743364862974,5.16113302,82793.0,82792.0,35.69131499]
[1743364865567,5.14219692,82793.0,82792.0,35.69131499]
[1743364866662,4.88855292,82793.0,82792.0,35.69131499]
[1743364867071,4.75147292,82793.0,82792.0,35.69131499]
[1743364867508,4.84442392,82793.0,82792.0,35.69131499]
[1743364867751,4.85650192,82793.0,82792.0,35.69131499]
[1743364867968,1.16773292,82793.0,82792.0,35.69131499]
[1743364868270,4.82295092,82793.0,82792.0,35.69131499]
[1743364868443,4.85696992,82793.0,82792.0,35.69131499]
[1743364868661,4.84489192,82793.0,82792.0,35.69131499]
[1743364868835,4.78735292,82793.0,82792.0,35.69131499]
[1743364869036,4.65027292,82793.0,82792.0,35.69131499]
[1743364869267,4.29382592,82793.0,82792.0,35.69131499]
[1743364870539,4.30590392,82793.0,82792.0,35.69131499]
[1743364870649,4.29382592,82793.0,82792.0,35.69131499]
[1743364872167,4.15678592,82793.0,82792.0,35.69131499]
[1743364872571,4.29382592,82793.0,82792.0,35.69131499]
[1743364872979,4.30590392,82793.0,82792.0,35.69131499]
[1743364878346,4.15678592,82793.0,82792.0,35.69131499]
[1743364878556,4.29382592,82793.0,82792.0,35.69131499]
[1743364878758,1.01857492,82793.0,82792.0,35.69131499]
[1743364878958,1.15561492,82793.0,82792.0,35.69131499]
[1743364879157,5.05990692,82793.0,82792.0,35.69131499]
[1743364879314,5.26390692,82793.0,82792.0,35.69131499]
[1743364879852,4.89467092,82793.0,82792.0,35.69131499]
[1743364881308,4.77488792,82793.0,82792.0,35.69131499]
[1743364882413,4.67909692,82793.0,82792.0,35.69131499]
[1743364882620,4.37262792,82793.0,82792.0,35.68725829]
[1743364884581,4.27980567,82793.0,82792.0,35.68725829]
[1743364887765,4.14276567,82793.0,82792.0,35.68725829]
[1743364887950,4.27976567,82793.0,82792.0,35.68725829]
[1743364889468,1.06275267,82793.0,82792.0,35.65878979]
[1743364889687,1.31639667,82793.0,82792.0,35.65878979]
[1743364889883,6.35771424,82793.0,82792.0,35.65878979]
[1743364890975,6.35771424,82793.0,82792.0,35.62241548]
[1743364891182,6.32139667,82793.0,82792.0,35.62241548]
[1743364891612,6.11225267,82793.0,82792.0,35.62241548]
[1743364892481,5.93727767,82793.0,82792.0,35.62241548]
[1743364892679,5.93227767,82793.0,82792.0,35.62241548]
[1743364892898,5.53010867,82793.0,82792.0,35.62241548]
[1743364894259,5.38243967,82793.0,82792.0,35.62241548]
[1743364898603,5.38231889,82793.0,82792.0,35.62241548]
[1743364902926,5.38231889,82793.0,82792.0,35.5618333]
[1743364903128,5.38231889,82793.0,82792.0,35.50096722]
[1743364903328,5.38231889,82793.0,82792.0,35.44046722]
[1743364907848,1.32127589,82793.0,82792.0,35.44046722]
[1743364908209,5.95512989,82793.0,82792.0,35.44046722]
[1743364908546,5.70174389,82793.0,82792.0,35.44046722]
[1743364909805,5.70174389,82793.0,82792.0,35.40411859]
[1743364910671,5.52624734,82793.0,82792.0,35.40411859]
[1743364911440,5.50471802,82793.0,82792.0,33.79262052]
[1743364911555,5.72963946,82793.0,82792.0,33.75627377]
[1743364912843,5.39834737,82793.0,82792.0,33.75627377]
[1743364913246,5.43882751,82793.0,82792.0,33.75627377]
[1743364913784,6.13882751,82793.0,82792.0,33.75627377]
[1743364914346,6.13882751,82793.0,82792.0,32.7120357]
[1743364916096,6.13882751,82793.0,82792.0,32.67569095]
[1743364916300,6.13882751,82793.0,82792.0,32.52432154]
[1743364917801,6.09834737,82793.0,82792.0,32.52432154]
[1743364918019,6.71787937,82793.0,82792.0,32.30651124]
[1743364918444,1.71787937,82793.0,82792.0,31.26227317]
[1743364918794,6.71787937,82793.0,82792.0,31.26227317]
[1743364919612,6.71787937,82793.0,82792.0,31.16650562]
[1743364919816,6.71787937,82793.0,82792.0,30.92413961]
[1743364920015,6.71787937,82793.0,82792.0,30.35881061]
[1743364920195,6.85835951,82793.0,82792.0,29.76975161]
[1743364921109,6.85335951,82793.0,82792.0,29.76975161]
[1743364921460,6.85835951,82793.0,82792.0,29.76975161]
[1743364921785,6.85335951,82793.0,82792.0,29.76975161]
[1743364922214,6.85835951,82793.0,82792.0,29.76975161]
[1743364924768,6.85835951,82793.0,82792.0,29.62437706]
[1743364925071,6.85835951,82793.0,82792.0,29.56378023]
[1743364925275,6.83376965,82793.0,82792.0,29.56378023]
[1743364925531,7.25186965,82793.0,82792.0,29.56378023]
[1743364926571,7.25186965,82793.0,82792.0,29.43080019]
[1743364926981,7.25186965,82793.0,82792.0,28.85725244]
[1743364927186,7.33712804,82793.0,82792.0,25.33171683]
[1743364927428,7.36176212,82793.0,82792.0,23.70765351]
[1743364927623,2.30150373,82793.0,82792.0,21.48073198]
[1743364928140,2.29650373,82793.0,82792.0,21.48073198]
[1743364928368,2.30150373,82793.0,82792.0,21.15156198]
[1743364929019,2.30150373,82793.0,82792.0,20.94956198]
[1743364929230,2.29650373,82793.0,82792.0,19.13436996]
[1743364929433,2.30150373,82793.0,82792.0,18.44783207]
[1743364929634,2.29650373,82793.0,82792.0,16.75383069]
[1743364929794,2.29150373,82793.0,82792.0,16.2692928]
[1743364929994,2.29650373,82793.0,82792.0,16.2692928]
[1743364930401,2.29650373,82793.0,82792.0,15.89708109]
[1743364930634,2.29650373,82793.0,82792.0,15.88956083]
[1743364931003,2.30150373,82793.0,82792.0,15.88956083]
[1743364931300,2.30150373,82793.0,82792.0,14.92052503]
[1743364932057,2.30150373,82793.0,82792.0,14.42052503]
[1743364932398,2.30150373,82793.0,82792.0,14.25899527]
[1743364932771,2.30150373,82793.0,82792.0,14.1411332]
[1743364933249,2.30150373,82793.0,82792.0,14.12605816]
[1743364933954,1.91085973,82793.0,82792.0,14.12605816]
[1743364934107,2.04785973,82793.0,82792.0,13.61624305]
[1743364934320,2.29785973,82793.0,82792.0,13.61624305]
[1743364934852,2.25737959,82793.0,82792.0,13.61624305]
[1743364935053,2.23248691,82793.0,82792.0,13.61624305]
[1743364935198,2.09548691,82793.0,82792.0,13.61624305]
[1743364935398,2.23248691,82793.0,82792.0,13.61624305]
[1743364937053,2.23248691,82793.0,82792.0,12.16748366]
[1743364937252,2.23248691,82793.0,82792.0,11.11324695]
[1743364937495,2.23248691,82793.0,82792.0,5.62870905]
[1743364937671,2.23248691,82793.0,82792.0,5.14417115]
[1743364937873,2.23248691,82793.0,82792.0,3.66380583]
[1743364938420,2.23248691,82793.0,82792.0,1.60134778]
[1743364938779,2.2927453,82793.0,82792.0,1.11680989]
[1743364939223,0.09065264,82791.0,82790.0,1e-08]
[1743364939419,1.20760499,82791.0,82790.0,8.535e-05]
[1743364939576,1.20519349,82791.0,82790.0,8.535e-05]
[1743364939977,5.43688849,82791.0,82790.0,8.535e-05]
[1743364940206,5.60940049,82791.0,82790.0,8.535e-05]
[1743364940579,5.65075349,82791.0,82790.0,8.535e-05]
[1743364940965,5.65575349,82791.0,82790.0,8.535e-05]
[1743364942536,4.60929049,82791.0,82790.0,8.535e-05]
[1743364942708,4.08751885,82791.0,82790.0,8.535e-05]
[1743364943113,4.50561885,82791.0,82790.0,8.535e-05]
[1743364944138,4.06865885,82791.0,82790.0,8.535e-05]
[1743364944350,4.10561885,82791.0,82790.0,8.535e-05]
[1743364944572,4.40561885,82791.0,82790.0,8.535e-05]
[1743364944969,3.70561885,82791.0,82790.0,8.535e-05]
[1743364945375,3.70061885,82791.0,82790.0,8.535e-05]
[1743364945572,3.70561885,82791.0,82790.0,8.535e-05]
[1743364945977,3.70061885,82791.0,82790.0,8.535e-05]
[1743364946151,3.70561885,82791.0,82790.0,8.535e-05]
[1743364946558,3.70061885,82791.0,82790.0,8.535e-05]
[1743364946815,3.70561885,82791.0,82790.0,8.535e-05]
[1743364947265,3.70061885,82791.0,82790.0,8.535e-05]
[1743364947394,3.70561885,82791.0,82790.0,8.535e-05]
[1743364950394,1.17095385,82791.0,82790.0,8.535e-05]
[1743364950591,6.17095385,82791.0,82790.0,8.535e-05]
[1743364954869,6.03399385,82791.0,82790.0,8.535e-05]
[1743364955064,6.17091385,82791.0,82790.0,8.535e-05]
[1743364955312,6.87091385,82791.0,82790.0,8.535e-05]
[1743364955517,7.18521649,82791.0,82790.0,8.535e-05]
[1743364955672,7.26361649,82791.0,82790.0,8.535e-05]
[1743364957403,7.32458821,82791.0,82790.0,8.535e-05]
[1743364960365,7.32475671,82791.0,82790.0,8.535e-05]
[1743364961267,7.02386286,82791.0,82790.0,8.535e-05]
[1743364962264,7.02870886,82791.0,82790.0,8.535e-05]
[1743364962465,7.00161185,82791.0,82790.0,8.535e-05]
[1743364962668,6.96773714,82791.0,82790.0,8.535e-05]
[1743364963177,6.98227799,82791.0,82790.0,8.535e-05]
[1743364963378,7.23227799,82791.0,82790.0,8.535e-05]
[1743364963638,7.28137799,82791.0,82790.0,8.535e-05]
[1743364964260,7.3898466,82791.0,82790.0,8.535e-05]
[1743364966008,7.25487675,82791.0,82790.0,8.535e-05]
[1743364966256,7.31725524,82791.0,82790.0,8.535e-05]
[1743364967032,7.31225524,82791.0,82790.0,8.535e-05]
[1743364967261,7.30725524,82791.0,82790.0,8.535e-05]
[1743364967428,7.31725524,82791.0,82790.0,8.535e-05]
[1743364968307,0.505,82776.0,82775.0,0.000337]
[1743364968512,6.07456085,82776.0,82775.0,0.00080731]
[1743364968921,6.07940785,82776.0,82775.0,0.00080731]
[1743364969439,7.03310285,82776.0,82775.0,0.00080731]
[1743364969654,7.04310285,82776.0,82775.0,0.00080731]
[1743364970341,2.61886285,82776.0,82775.0,0.00080731]
[1743364970521,7.61886285,82776.0,82775.0,0.00080731]
[1743364970724,7.64328047,82776.0,82775.0,0.00080731]
[1743364971543,7.43703495,82776.0,82775.0,0.00080731]
[1743364972112,7.43203495,82776.0,82775.0,0.00080731]
[1743364972866,7.43703495,82776.0,82775.0,0.00080731]
[1743364973045,7.42703495,82776.0,82775.0,0.00080731]
[1743364973425,7.43703495,82776.0,82775.0,0.00080731]
[1743364974952,7.47092446,82776.0,82775.0,0.00080731]
[1743364975537,7.49803583,82776.0,82775.0,0.00080731]
[1743364976305,7.48803583,82776.0,82775.0,0.00080731]
[1743364976420,7.49803583,82776.0,82775.0,0.00080731]
[1743364978317,7.61795734,82776.0,82775.0,0.00080731]
[1743364980565,7.58033583,82776.0,82775.0,0.00080731]
[1743364980765,7.28158135,82776.0,82775.0,0.00080731]
[1743364981041,2.28158135,82776.0,82775.0,0.00080731]
[1743364981245,0.17602501,82759.0,82751.0,0.000981]
[1743364981464,0.01454085,82757.0,82749.0,0.04908286]
[1743364981675,0.01454085,82755.0,82749.0,0.04908286]
[1743364981991,5.0,82754.0,82749.0,0.04908286]
[1743364982725,0.01454085,82752.0,82749.0,0.04908286]
[1743364982857,0.31454085,82750.0,82749.0,0.04908286]
[1743364983061,4.88445385,82750.0,82749.0,0.04908286]
[1743364983270,1.943921,82750.0,82749.0,0.04908286]
[1743364983479,1.616122,82750.0,82749.0,0.04908286]
[1743364983897,1.64032563,82750.0,82749.0,0.04908286]
[1743364984142,1.643797,82750.0,82749.0,0.04908286]
[1743364984430,1.643797,82750.0,82749.0,0.09538286]
[1743364985552,1.646797,82750.0,82749.0,0.09538286]
[1743364988201,1.783717,82750.0,82749.0,0.09538286]
[1743364992696,0.01454085,82749.0,82743.0,0.082]
[1743364993020,0.01454085,82747.0,82741.0,0.0472]
[1743364993223,0.01454085,82747.0,82731.0,0.004]
[1743364993224,0.31454085,82745.0,82736.0,0.082]
[1743364993376,0.31454085,82745.0,82733.0,0.0472]
[1743364993377,0.31454085,82743.0,82733.0,0.0472]
[1743364993604,0.31454085,82741.0,82733.0,0.0472]
[1743364993804,0.31454085,82739.0,82733.0,0.0472]
[1743364994027,0.3,82737.0,82733.0,0.0472]
[1743364994228,0.01454085,82734.0,82733.0,0.0472]
[1743364994405,5.31454085,82734.0,82733.0,0.0472]
[1743364995569,5.31554085,82734.0,82733.0,0.0472]
[1743364996214,5.34193199,82734.0,82733.0,0.0472]
[1743364999481,5.33893199,82734.0,82733.0,0.0472]
[1743364999849,5.34393199,82734.0,82733.0,0.0472]